fUST/lending_fUST_20260114
["ID","MTS","AMOUNT","RATE_DAILY","PERIOD"]
[401852563,1768387838897,-520.32241664,0.00012329,2]
[401852565,1768387838907,-520.32241664,0.00012329,2]
[401852567,1768387838917,-520.32241664,0.00012329,2]
[401852569,1768387838926,-520.32241664,0.00012329,2]
[401852571,1768387838935,-151.89,0.00012603,2]
[401852573,1768387838945,-864.0,0.0001261,2]
[401852574,1768387838954,-19805.93410515,0.000129,2]
[401852576,1768387838964,-19805.93410511,0.00012961,2]
[401852578,1768387838973,-250.0,0.00013213,2]
[401852580,1768387838983,-185.93278081,0.00013273,2]
[401852582,1768387838994,-500.0,0.00013273,2]
[401852584,1768387839004,-500.21355158,0.00013273,2]
[401852586,1768387839014,-500.0,0.00013273,2]
[401852588,1768387839023,-500.0,0.00013273,2]
[401852590,1768387839032,-500.0,0.00013273,2]
[401852592,1768387839043,-500.0,0.00013273,2]
[401852594,1768387839052,-500.0,0.00013273,2]
[401852596,1768387839062,-500.0,0.00013273,2]
[401852598,1768387839072,-500.0,0.00013273,2]
[401852600,1768387839082,-500.0,0.00013273,2]
[401852602,1768387839092,-500.0,0.00013273,2]
[401852604,1768387839101,-500.0,0.00013273,2]
[401852606,1768387839111,-167.63409657,0.00013273,2]
[401852608,1768387839120,-500.0,0.00013273,2]
[401852610,1768387839129,-500.0,0.00013273,2]
[401852612,1768387839139,-500.0,0.00013273,2]
[401852614,1768387839149,-547.00656757,0.00013273,2]
[401852616,1768387839159,-500.0,0.00013273,2]
[401852618,1768387839169,-500.0,0.00013273,2]
[401852620,1768387839179,-500.0,0.00013273,2]
[401852622,1768387839189,-500.0,0.00013273,2]
[401852624,1768387839197,-162.00337471,0.00013273,2]
[401852626,1768387839206,-500.0,0.00013273,2]
[401852628,1768387839216,-500.0,0.00013273,2]
[401852629,1768387839226,-500.49098579,0.00013273,2]
[401852631,1768387839235,-500.18250774,0.00013273,2]
[401852633,1768387839245,-500.0,0.00013273,2]
[401852635,1768387839255,-261.59054001,0.00013273,2]
[401852637,1768387839264,-520.1094365,0.00013273,2]
[401852639,1768387839273,-500.0,0.00013273,2]
[401852641,1768387839283,-500.0,0.00013273,2]
[401852643,1768387839293,-500.28056306,0.00013273,2]
[401852645,1768387839302,-501.03457385,0.00013273,2]
[401852647,1768387839311,-500.0,0.00013273,2]
[401852649,1768387839322,-195.77760179,0.00013273,2]
[401852651,1768387839331,-500.0,0.00013273,2]
[401852653,1768387839341,-185.624668,0.00013273,2]
[401852655,1768387839350,-500.0,0.00013273,2]
[401852657,1768387839359,-500.0,0.00013273,2]
[401852659,1768387839368,-500.0,0.00013273,2]
[401852661,1768387839377,-500.0,0.00013273,2]
[401852663,1768387839386,-500.0,0.00013273,2]
[401852665,1768387839395,-500.0,0.00013273,2]
[401852667,1768387839404,-500.0,0.00013273,2]
[401852669,1768387839414,-500.0,0.00013273,2]
[401852671,1768387839423,-500.0,0.00013273,2]
[401852672,1768387839434,-500.25674362,0.00013273,2]
[401852674,1768387839443,-500.0,0.00013273,2]
[401852676,1768387839453,-500.0,0.00013273,2]
[401852678,1768387839463,-500.0,0.00013273,2]
[401852681,1768387839472,-500.0,0.00013273,2]
[401852683,1768387839481,-500.0,0.00013273,2]
[401852685,1768387839491,-823.0,0.00013459,2]
[401852687,1768387839501,-300.0,0.00013673,2]
[401852689,1768387839511,-500.0,0.00013698,2]
[401852691,1768387839521,-500.0,0.00013698,2]
[401852693,1768387839535,-622.37610142,0.00013698,2]
[401852695,1768387839551,-500.0,0.00013698,2]
[401852697,1768387839560,-500.0,0.00013698,2]
[401852699,1768387839569,-500.0,0.00013698,2]
[401852701,1768387839579,-500.0,0.00013698,2]
[401852703,1768387839588,-500.0,0.00013698,2]
[401852705,1768387839597,-500.0,0.00013698,2]
[401852707,1768387839606,-636.78829679,0.00013698,2]
[401852709,1768387839615,-500.0,0.00013698,2]
[401852711,1768387839625,-500.0,0.00013698,2]
[401852713,1768387839634,-253.34510422,0.00013698,2]
[401852715,1768387839644,-800.23,0.00013698,2]
[401852717,1768387839654,-800.23,0.00013698,2]
[401852719,1768387839663,-800.23,0.00013698,2]
[401852721,1768387839673,-800.23,0.00013698,2]
[401852723,1768387839684,-800.23,0.00013698,2]
[401852725,1768387839693,-800.23,0.00013698,2]
[401852726,1768387839703,-800.23,0.00013698,2]
[401852728,1768387839712,-800.23,0.00013698,2]
[401852730,1768387839722,-800.23,0.00013698,2]
[401852732,1768387839731,-800.23,0.00013698,2]
[401852734,1768387839740,-800.23,0.00013698,2]
[401852736,1768387839753,-800.23,0.00013698,2]
[401852738,1768387839765,-800.23,0.00013698,2]
[401852740,1768387839775,-800.23,0.00013698,2]
[401852742,1768387839785,-800.23,0.00013698,2]
[401852744,1768387839794,-800.23,0.00013698,2]
[401852746,1768387839804,-800.23,0.00013698,2]
[401852748,1768387839814,-800.23,0.00013698,2]
[401852750,1768387839825,-800.23,0.00013698,2]
[401852752,1768387839834,-800.23,0.00013698,2]
[401852754,1768387839844,-800.23,0.00013698,2]
[401852756,1768387839853,-800.23,0.00013698,2]
[401852758,1768387839862,-800.23,0.00013698,2]
[401852760,1768387839871,-800.43872931,0.00013698,2]
[401852762,1768387839880,-500.0,0.00013698,2]
[401852764,1768387839891,-500.0,0.00013698,2]
[401852766,1768387839901,-500.0,0.00013698,2]
[401852768,1768387839911,-500.0,0.00013698,2]
[401852770,1768387839920,-500.0,0.00013698,2]
[401852772,1768387839930,-500.0,0.00013698,2]
[401852774,1768387839939,-509.06636441,0.00013698,2]
[401852776,1768387839948,-500.0,0.00013698,2]
[401852778,1768387839957,-500.0,0.00013698,2]
[401852780,1768387839966,-633.96263391,0.00013698,2]
[401852782,1768387839975,-500.0,0.00013698,2]
[401852784,1768387839984,-500.0,0.00013698,2]
[401852786,1768387839993,-500.0,0.00013698,2]
[401852788,1768387840003,-500.0,0.00013698,2]
[401852790,1768387840012,-500.0,0.00013698,2]
[401852792,1768387840022,-500.0,0.00013698,2]
[401852794,1768387840032,-582.4382982,0.00013698,2]
[401852796,1768387840043,-500.0,0.00013698,2]
[401852798,1768387840053,-500.0,0.00013698,2]
[401852801,1768387840063,-500.0,0.00013698,2]
[401852804,1768387840073,-500.0,0.00013698,2]
[401852807,1768387840082,-500.0,0.00013698,2]
[401852810,1768387840091,-500.0,0.00013698,2]
[401852812,1768387840102,-500.0,0.00013698,2]
[401852814,1768387840111,-500.0,0.00013698,2]
[401852816,1768387840120,-500.0,0.00013698,2]
[401852830,1768387840227,-500.0,0.00013698,2]
[401852832,1768387840249,-500.0,0.00013698,2]
[401852834,1768387840258,-500.0,0.00013698,2]
[401852836,1768387840268,-500.0,0.00013698,2]
[401852838,1768387840277,-500.0,0.00013698,2]
[401852840,1768387840287,-500.0,0.00013698,2]
[401852842,1768387840296,-500.0,0.00013698,2]
[401852844,1768387840306,-500.0,0.00013698,2]
[401852846,1768387840316,-500.0,0.00013698,2]
[401852848,1768387840324,-500.0,0.00013698,2]
[401852850,1768387840333,-500.0,0.00013698,2]
[401852852,1768387840342,-500.0,0.00013698,2]
[401852854,1768387840351,-500.0,0.00013698,2]
[401852856,1768387840360,-500.0,0.00013698,2]
[401852858,1768387840370,-181.98825894,0.00013698,2]
[401852860,1768387840379,-500.0,0.00013698,2]
[401852862,1768387840387,-500.0,0.00013698,2]
[401852864,1768387840396,-500.0,0.00013698,2]
[401852866,1768387840405,-500.0,0.00013698,2]
[401852868,1768387840414,-550.39437847,0.00013698,2]
[401852870,1768387840423,-287.27602471,0.00013698,2]
[401852872,1768387840432,-1000.0,0.00013698,2]
[401852874,1768387840441,-1000.0,0.00013698,2]
[401852875,1768387840450,-1000.0,0.00013698,2]
[401852877,1768387840459,-1000.0,0.00013698,2]
[401852879,1768387840468,-1000.0,0.00013698,2]
[401852881,1768387840476,-1000.0,0.00013698,2]
[401852883,1768387840486,-1000.0,0.00013698,2]
[401852885,1768387840494,-1017.75755303,0.00013698,2]
[401852887,1768387840503,-500.0,0.00013698,2]
[401852889,1768387840513,-500.0,0.00013698,2]
[401852891,1768387840522,-500.0,0.00013698,2]
[401852893,1768387840531,-525.94,0.00013698,2]
[401852895,1768387840539,-453.8287473,0.00013698,2]
[401852897,1768387840550,-525.94,0.00013698,2]
[401852899,1768387840558,-525.94,0.00013698,2]
[401852901,1768387840568,-525.94,0.00013698,2]
[401852903,1768387840577,-525.94,0.00013698,2]
[401852905,1768387840587,-525.94,0.00013698,2]
[401852907,1768387840597,-525.94,0.00013698,2]
[401852909,1768387840606,-525.94,0.00013698,2]
[401852911,1768387840614,-525.94,0.00013698,2]
[401852913,1768387840624,-525.94,0.00013698,2]
[401852915,1768387840633,-525.94,0.00013698,2]
[401852916,1768387840644,-525.94,0.00013698,2]
[401852918,1768387840653,-525.94,0.00013698,2]
[401852920,1768387840661,-525.94,0.00013698,2]
[401852922,1768387840670,-525.94,0.00013698,2]
[401852924,1768387840680,-525.94,0.00013698,2]
[401852926,1768387840689,-525.94,0.00013698,2]
[401852928,1768387840698,-525.94,0.00013698,2]
[401852930,1768387840708,-525.94,0.00013698,2]
[401852932,1768387840718,-525.94,0.00013698,2]
[401852934,1768387840727,-525.94,0.00013698,2]
[401852936,1768387840736,-525.94,0.00013698,2]
[401852938,1768387840747,-525.94,0.00013698,2]
[401852940,1768387840756,-526.04678427,0.00013698,2]
[401852942,1768387840766,-1593.3,0.00013698,2]
[401852944,1768387840775,-1593.3,0.00013698,2]
[401852946,1768387840784,-1593.3,0.00013698,2]
[401852948,1768387840794,-1593.3,0.00013698,2]
[401852950,1768387840803,-1593.3,0.00013698,2]
[401852952,1768387840813,-1593.3,0.00013698,2]
[401852954,1768387840823,-1593.3,0.00013698,2]
[401852956,1768387840832,-1593.3,0.00013698,2]
[401852958,1768387840842,-1593.3,0.00013698,2]
[401852960,1768387840851,-1593.3,0.00013698,2]
[401852962,1768387840860,-1593.3,0.00013698,2]
[401852964,1768387840869,-1593.3,0.00013698,2]
[401852966,1768387840878,-1593.3,0.00013698,2]
[401852968,1768387840887,-1593.3,0.00013698,2]
[401852970,1768387840896,-1593.3,0.00013698,2]
[401852972,1768387840905,-1593.3,0.00013698,2]
[401852974,1768387840915,-1593.3,0.00013698,2]
[401852976,1768387840924,-1593.3,0.00013698,2]
[401852978,1768387840933,-1593.3,0.00013698,2]
[401852980,1768387840942,-1593.3,0.00013698,2]
[401852982,1768387840951,-1593.3,0.00013698,2]
[401852984,1768387840960,-1593.3,0.00013698,2]
[401852986,1768387840969,-1593.3,0.00013698,2]
[401852987,1768387840978,-1593.3055421,0.00013698,2]
[401852989,1768387840987,-500.0,0.00013698,2]
[401852991,1768387840995,-500.0,0.00013698,2]
[401852993,1768387841005,-500.0,0.00013698,2]
[401852995,1768387841014,-500.0,0.00013698,2]
[401852997,1768387841023,-500.0,0.00013698,2]
[401852999,1768387841032,-500.0,0.00013698,2]
[401853001,1768387841041,-500.0,0.00013698,2]
[401853003,1768387841050,-500.0,0.00013698,2]
[401853005,1768387841060,-500.0,0.00013698,2]
[401853007,1768387841068,-500.0,0.00013698,2]
[401853009,1768387841077,-500.0,0.00013698,2]
[401853011,1768387841086,-500.0,0.00013698,2]
[401853013,1768387841095,-500.0,0.00013698,2]
[401853015,1768387841104,-500.0,0.00013698,2]
[401853017,1768387841113,-500.0,0.00013698,2]
[401853019,1768387841122,-500.0,0.00013698,2]
[401853021,1768387841131,-500.0,0.00013698,2]
[401853023,1768387841139,-500.0,0.00013698,2]
[401853025,1768387841148,-500.0,0.00013698,2]
[401853026,1768387841158,-516.10527878,0.00013698,2]
[401853028,1768387841166,-518.87817295,0.00013698,2]
[401853030,1768387841175,-500.0,0.00013698,2]
[401853032,1768387841185,-500.0,0.00013698,2]
[401853034,1768387841196,-500.0,0.00013698,2]
[401853036,1768387841205,-500.0,0.00013698,2]
[401853038,1768387841214,-500.0,0.00013698,2]
[401853040,1768387841223,-500.0,0.00013698,2]
[401853042,1768387841233,-500.0,0.00013698,2]
[401853044,1768387841242,-500.0,0.00013698,2]
[401853046,1768387841251,-500.0,0.00013698,2]
[401853048,1768387841260,-500.0,0.00013698,2]
[401853050,1768387841269,-260.74557216,0.00013698,2]
[401853052,1768387841279,-504.29229129,0.00013698,2]
[401853054,1768387841288,-500.0,0.00013698,2]
[401853056,1768387841301,-500.0,0.00013698,2]
[401853059,1768387841311,-500.0,0.00013698,2]
[401853061,1768387841321,-559.52204836,0.00013698,2]
[401853063,1768387841331,-113411.7114568,0.00013699,2]
[401853064,1768387841340,-2028.396733,0.00013699,2]
[401853066,1768387841349,-500.0,0.00013699,2]
[401853068,1768387841358,-501.43010395,0.00013699,2]
[401853070,1768387841367,-500.35014826,0.00013699,2]
[401853072,1768387841376,-500.0,0.00013699,2]
[401853074,1768387841385,-500.0,0.00013699,2]
[401853076,1768387841393,-500.0,0.00013699,2]
[401853078,1768387841402,-500.0,0.00013699,2]
[401853080,1768387841412,-500.0,0.00013699,2]
[401853082,1768387841420,-500.0,0.00013699,2]
[401853084,1768387841430,-504.50322617,0.00013699,2]
[401853086,1768387841440,-500.30572678,0.00013699,2]
[401853088,1768387841449,-193.02895498,0.00013699,2]
[401853090,1768387841458,-500.0,0.00013699,2]
[401853092,1768387841467,-500.0,0.00013699,2]
[401853094,1768387841477,-500.0,0.00013699,2]
[401853096,1768387841486,-489.04509742,0.00013699,2]
[401853098,1768387841495,-500.0,0.00013699,2]
[401853100,1768387841504,-500.0,0.00013699,2]
[401853102,1768387841513,-500.0,0.00013699,2]
[401853104,1768387841522,-500.28466628,0.00013699,2]
[401853106,1768387841531,-500.0,0.00013699,2]
[401853108,1768387841541,-500.0,0.00013699,2]
[401853110,1768387841551,-500.0,0.00013699,2]
[401853112,1768387841560,-500.0,0.00013699,2]
[401853114,1768387841569,-500.0,0.00013699,2]
[401853116,1768387841578,-500.63930151,0.00013699,2]
[401853118,1768387841587,-500.0,0.00013699,2]
[401853120,1768387841598,-413.79090585,0.00013699,2]
[401853122,1768387841607,-500.0,0.00013699,2]
[401853124,1768387841616,-500.0,0.00013699,2]
[401853126,1768387841626,-500.32486546,0.00013699,2]
[401853128,1768387841635,-252.90578758,0.00013699,2]
[401853130,1768387841643,-500.0,0.00013699,2]
[401853132,1768387841652,-501.82501982,0.00013699,2]
[401853134,1768387841661,-500.0,0.00013699,2]
[401853136,1768387841670,-301.86126485,0.00013699,2]
[401853138,1768387841679,-500.0,0.00013699,2]
[401853140,1768387841688,-500.0,0.00013699,2]
[401853142,1768387841697,-500.0,0.00013699,2]
[401853144,1768387841706,-500.70727162,0.00013699,2]
[401853146,1768387841715,-500.0,0.00013699,2]
[401853148,1768387841724,-500.0,0.00013699,2]
[401853149,1768387841733,-519.22942888,0.00013699,2]
[401853151,1768387841742,-500.0,0.00013699,2]
[401853153,1768387841755,-443.99780341,0.00013699,2]
[401853165,1768387841856,-500.0,0.00013699,2]
[401853168,1768387841876,-500.0,0.00013699,2]
[401853170,1768387841886,-500.0,0.00013699,2]
[401853172,1768387841895,-500.0,0.00013699,2]
[401853174,1768387841904,-500.0,0.00013699,2]
[401853176,1768387841914,-500.0,0.00013699,2]
[401853178,1768387841923,-500.0,0.00013699,2]
[401853179,1768387841933,-500.0,0.00013699,2]
[401853180,1768387841942,-500.0,0.00013699,2]
[401853181,1768387841951,-500.0,0.00013699,2]
[401853182,1768387841960,-500.0,0.00013699,2]
[401853183,1768387841969,-500.0,0.00013699,2]
[401853184,1768387841977,-500.0,0.00013699,2]
[401853185,1768387841987,-433.32498894,0.00013699,2]
[401853186,1768387841996,-10000.0,0.00013735,2]
[401853187,1768387842005,-10000.0,0.00013735,2]
[401853188,1768387842014,-4343.48,0.00013735,2]
[401853189,1768387842023,-1000.0,0.00013821,2]
[401853190,1768387842032,-1002.68632401,0.00013821,2]
[401853191,1768387842041,-1002.88869488,0.00013821,2]
[401853192,1768387842051,-1000.0,0.00013821,2]
[401853193,1768387842059,-1000.0,0.00013821,2]
[401853194,1768387842068,-440.24648614,0.00013821,2]
[401853195,1768387842078,-1000.0,0.00013821,2]
[401853196,1768387842087,-1000.0,0.00013821,2]
[401853197,1768387842096,-1000.0,0.00013821,2]
[401853198,1768387842105,-1000.0,0.00013821,2]
[401853199,1768387842114,-1000.0,0.00013821,2]
[401853200,1768387842123,-1000.0,0.00013821,2]
[401853201,1768387842133,-1000.0,0.00013821,2]
[401853202,1768387842142,-1015.29551893,0.00013821,2]
[401853203,1768387842151,-1000.0,0.00013821,2]
[401853205,1768387842160,-169.06993919,0.00013821,2]
[401853207,1768387842170,-1000.0,0.00013821,2]
[401853209,1768387842180,-1000.0,0.00013821,2]
[401853211,1768387842189,-1000.0,0.00013821,2]
[401853213,1768387842199,-1000.0,0.00013821,2]
[401853215,1768387842208,-1000.0,0.00013821,2]
[401853217,1768387842217,-604.03491902,0.00013821,2]
[401853219,1768387842226,-1003.01901965,0.00013821,2]
[401853222,1768387842237,-1000.0,0.00013821,2]
[401853223,1768387842246,-1000.0,0.00013821,2]
[401853225,1768387842255,-1000.0,0.00013821,2]
[401853227,1768387842264,-1002.99360219,0.00013821,2]
[401853229,1768387842273,-446.5684735,0.00013821,2]
[401853231,1768387842283,-386.78841051,0.00013821,2]
[401853233,1768387842291,-1000.0,0.00013821,2]
[401853235,1768387842301,-771.86141758,0.00013821,2]
[401853237,1768387842311,-1000.0,0.00013821,2]
[401853239,1768387842321,-424.36340331,0.00013821,2]
[401853241,1768387842330,-1000.0,0.00013821,2]
[401853243,1768387842340,-1000.0,0.00013821,2]
[401853245,1768387842349,-1000.0,0.00013821,2]
[401853247,1768387842359,-344.64451203,0.00013821,2]
[401853249,1768387842367,-1000.0,0.00013821,2]
[401853251,1768387842377,-1000.0,0.00013821,2]
[401853253,1768387842386,-1000.0,0.00013871,2]
[401853255,1768387842395,-150.15988072,0.00013973,2]
[401853257,1768387842405,-1000.0,0.00014,2]
[401853259,1768387842414,-180.3,0.00014025,2]
[401853261,1768387842423,-883.88175493,0.00014039,2]
[401853263,1768387842432,-10000.0,0.00014147,2]
[401853265,1768387842441,-600.0,0.00014221,2]
[401853267,1768387842450,-1000.0,0.00014247,2]
[401853269,1768387842459,-1000.0,0.00014247,2]
[401853271,1768387842468,-1000.0,0.00014247,2]
[401853273,1768387842477,-500.64657654,0.00014247,2]
[401853275,1768387842487,-1000.0,0.00014247,2]
[401853277,1768387842496,-1000.0,0.00014247,2]
[401853279,1768387842505,-1000.0,0.00014247,2]
[401853281,1768387842514,-503.87539742,0.00014247,2]
[401853283,1768387842523,-1000.0,0.00014247,2]
[401853285,1768387842532,-1000.0,0.00014247,2]
[401853286,1768387842541,-1000.0,0.00014247,2]
[401853288,1768387842550,-1000.0,0.00014247,2]
[401853290,1768387842559,-1000.0,0.00014247,2]
[401853292,1768387842568,-1000.0,0.00014247,2]
[401853294,1768387842578,-500.30863166,0.00014247,2]
[401853296,1768387842587,-1000.0,0.00014247,2]
[401853298,1768387842596,-1000.0,0.00014247,2]
[401853300,1768387842605,-419.62973898,0.00014247,2]
[401853303,1768387842615,-503.83285644,0.00014247,2]
[401853304,1768387842624,-500.65482097,0.00014247,2]
[401853306,1768387842633,-501.04290038,0.00014247,2]
[401853308,1768387842643,-250.0,0.00014247,2]
[401853310,1768387842652,-1000.0,0.00014247,2]
[401853312,1768387842662,-1000.0,0.00014247,2]
[401853314,1768387842672,-1000.0,0.00014247,2]
[401853316,1768387842682,-1000.0,0.00014247,2]
[401853319,1768387842692,-1000.0,0.00014247,2]
[401853320,1768387842701,-1000.0,0.00014247,2]
[401853322,1768387842710,-1000.0,0.00014247,2]
[401853324,1768387842720,-1001.20972535,0.00014247,2]
[401853326,1768387842729,-504.58578591,0.00014247,2]
[401853328,1768387842739,-1000.0,0.00014247,2]
[401853331,1768387842752,-1000.0,0.00014247,2]
[401853332,1768387842762,-1000.0,0.00014247,2]
[401853334,1768387842771,-841.41978725,0.00014247,2]
[401853336,1768387842781,-1000.0,0.00014247,2]
[401853338,1768387842791,-343.96245491,0.00014247,2]
[401853340,1768387842801,-1000.0,0.00014247,2]
[401853342,1768387842809,-1000.0,0.00014247,2]
[401853344,1768387842819,-1000.0,0.00014247,2]
[401853346,1768387842829,-1021.70348589,0.00014247,2]
[401853348,1768387842838,-1000.0,0.00014247,2]
[401853350,1768387842847,-1000.0,0.00014247,2]
[401853352,1768387842856,-822.79494335,0.00014368,2]
[401853354,1768387842866,-556.99110983,0.00014368,2]
[401853356,1768387842875,-1500.0,0.00014368,2]
[401853358,1768387842885,-453.04414217,0.00014368,2]
[401853360,1768387842894,-1500.0,0.00014368,2]
[401853362,1768387842903,-1500.0,0.00014368,2]
[401853364,1768387842913,-153.79187063,0.00014368,2]
[401853366,1768387842923,-503.99870158,0.00014368,2]
[401853368,1768387842932,-1500.0,0.00014368,2]
[401853370,1768387842942,-1500.0,0.00014368,2]
[401853372,1768387842951,-1500.0,0.00014368,2]
[401853374,1768387842961,-1500.0,0.00014368,2]
[401853376,1768387842970,-1500.0,0.00014368,2]
[401853378,1768387842979,-1623.81068567,0.00014368,2]
[401853380,1768387842988,-1500.0,0.00014368,2]
[401853382,1768387842997,-1500.0,0.00014368,2]
[401853383,1768387843007,-1500.0,0.00014368,2]
[401853385,1768387843016,-1500.0,0.00014368,2]
[401853387,1768387843026,-408.27996144,0.00014368,2]
[401853389,1768387843035,-1355.28517105,0.00014368,2]
[401853391,1768387843045,-158.07183809,0.00014368,2]
[401853393,1768387843055,-738.47106789,0.00014368,2]
[401853395,1768387843065,-1500.0,0.00014368,2]
[401853397,1768387843074,-1500.0,0.00014368,2]
[401853399,1768387843083,-1500.0,0.00014368,2]
[401853401,1768387843092,-1500.0,0.00014368,2]
[401853403,1768387843101,-5000.0,0.0001451,2]
[401853405,1768387843110,-100000.0,0.0001459,2]
[401853407,1768387843119,-900.0,0.00014768,2]
[401853409,1768387843128,-1500.0,0.00014795,2]
[401853411,1768387843137,-165.99620392,0.00014795,2]
[401853413,1768387843146,-1500.0,0.00014795,2]
[401853415,1768387843155,-1500.0,0.00014795,2]
[401853417,1768387843164,-559.25711422,0.00014795,2]
[401853419,1768387843173,-1646.70021057,0.00014795,2]
[401853421,1768387843182,-1500.0,0.00014795,2]
[401853423,1768387843191,-1500.0,0.00014795,2]
[401853425,1768387843200,-1000.0,0.00014795,2]
[401853427,1768387843209,-582.85856265,0.00014795,2]
[401853429,1768387843219,-979.00156205,0.00014795,2]
[401853430,1768387843228,-1540.3270641,0.00014795,2]
[401853431,1768387843237,-305.98884969,0.00014795,2]
[401853432,1768387843246,-622.97821503,0.00014795,2]
[401853433,1768387843255,-200.84224431,0.00014795,2]
[401853434,1768387843265,-1503.42728186,0.00014795,2]
[401853435,1768387843276,-1500.0,0.00014795,2]
[401853436,1768387843384,-452.68473609,0.00014795,2]
[401853437,1768387843393,-1500.0,0.00014795,2]
[401853438,1768387843402,-427.69304459,0.00014795,2]
[401853439,1768387843411,-791.25337467,0.00014795,2]
[401853440,1768387843420,-447.8417188,0.00014795,2]
[401853441,1768387843429,-1500.0,0.00014795,2]
[401853442,1768387843438,-1500.0,0.00014795,2]
[401853443,1768387843447,-1500.0,0.00014795,2]
[401853444,1768387843457,-1500.0,0.00014795,2]
[401853446,1768387843466,-1500.0,0.00014795,2]
[401853448,1768387843475,-1500.0,0.00014795,2]
[401853450,1768387843484,-1500.0,0.00014795,2]
[401853452,1768387843493,-1500.0,0.00014795,2]
[401853454,1768387843503,-1051.15225971,0.00014795,2]
[401853456,1768387843512,-1152.0,0.00014803,2]
[401853458,1768387843521,-403.91919138,0.000149,2]
[401853460,1768387843530,-403.91919137,0.000149,2]
[401853462,1768387843539,-403.91919137,0.000149,2]
[401853464,1768387843549,-2000.0,0.00014916,2]
[401853466,1768387843558,-2000.0,0.00014916,2]
[401853469,1768387843567,-2000.0,0.00014916,2]
[401853470,1768387843576,-2000.0,0.00014916,2]
[401853472,1768387843585,-1005.48440654,0.00014916,2]
[401853474,1768387843594,-2000.0,0.00014916,2]
[401853476,1768387843603,-2000.0,0.00014916,2]
[401853478,1768387843612,-2000.0,0.00014916,2]
[401853480,1768387843621,-878.64680697,0.00014916,2]
[401853482,1768387843630,-1288.90612665,0.00014916,2]
[401853484,1768387843639,-2000.0,0.00014916,2]
[401853486,1768387843648,-2000.0,0.00014916,2]
[401853488,1768387843657,-2000.0,0.00014916,2]
[401853490,1768387843667,-2000.0,0.00014916,2]
[401853492,1768387843676,-531.81939639,0.00014916,2]
[401853494,1768387843685,-1577.72950273,0.00014916,2]
[401853496,1768387843694,-1000.0,0.00015,2]
[401853498,1768387843703,-800.0,0.00015068,2]
[401853500,1768387843712,-12735.47781855,0.00015242,2]
[401853502,1768387843722,-1000.0,0.00015258,2]
[401853504,1768387843731,-244.0,0.00015258,2]
[401853506,1768387843740,-1200.0,0.00015316,2]
[401853508,1768387843755,-992.62086011,0.00015342,2]
[401853510,1768387843764,-2000.0,0.00015342,2]
[401853512,1768387843773,-559.4878042,0.00015342,2]
[401853514,1768387843783,-2000.0,0.00015342,2]
[401853516,1768387843793,-1594.03075988,0.00015342,2]
[401853518,1768387843803,-2000.0,0.00015342,2]
[401853520,1768387843813,-2000.0,0.00015342,2]
[401853522,1768387843823,-1373.84265648,0.00015342,2]
[401853524,1768387843833,-2000.0,0.00015342,2]
[401853526,1768387843841,-235.30085754,0.00015342,2]
[401853528,1768387843852,-248.49065547,0.00015342,2]
[401853530,1768387843862,-2000.0,0.00015342,2]
[401853532,1768387843872,-2000.0,0.00015342,2]
[401853534,1768387843881,-2000.0,0.00015342,2]
[401853536,1768387843890,-2500.0,0.00015464,2]
[401853538,1768387843901,-2500.0,0.00015464,2]